fUSD/lending_fUSD_20250407
["ID","MTS","AMOUNT","RATE_DAILY","PERIOD"]
[357295777,1743993043929,-660.09,0.00016179,2]
[357295779,1743993043938,-250.0,0.00016185,2]
[357295781,1743993043947,-753.97884081,0.00016316,2]
[357295783,1743993043957,-420.0,0.00016416,2]
[357295785,1743993043967,-250.0,0.00016499,2]
[357295787,1743993043977,-587.0,0.00017966,2]
[357295789,1743993043986,-184.83,0.00018194,2]
[357295791,1743993043995,-185.41872734,0.00018195,2]
[357295793,1743993044005,-200.0,0.00018217,2]
[357295795,1743993044014,-150.0,0.00018295,2]
[357295797,1743993044024,-660.09,0.00018442,2]
[357295799,1743993044034,-1764.88361243,0.000185,2]
[357295801,1743993044043,-6588.9077,0.00018725,2]
[357295803,1743993044052,-1075.45,0.000188,2]
[357295804,1743993044062,-1075.45,0.00018805,2]
[357295805,1743993044076,-1075.45,0.0001881,2]
[357295806,1743993044086,-1075.45,0.00018815,2]
[357295807,1743993044095,-1075.45,0.0001882,2]
[357295808,1743993044105,-1075.45,0.00018825,2]
[357295809,1743993044116,-1075.45,0.0001883,2]
[357295810,1743993044125,-1075.45,0.00018835,2]
[357295811,1743993044135,-1075.45,0.0001884,2]
[357295812,1743993044145,-1075.45,0.00018845,2]
[357295813,1743993044155,-150.6,0.00018846,2]
[357295814,1743993044166,-1075.45,0.0001885,2]
[357295815,1743993044176,-250.0,0.00018851,2]
[357295816,1743993044185,-1075.45,0.00018855,2]
[357295817,1743993044195,-1075.45,0.00018859,2]
[357295818,1743993044205,-151.132,0.00018859,2]
[357295819,1743993044215,-151.132,0.00018859,2]
[357295820,1743993044224,-151.132,0.00018859,2]
[357295821,1743993044234,-151.132,0.00018859,2]
[357295822,1743993044244,-151.132,0.00018859,2]
[357295823,1743993044253,-151.132,0.00018859,2]
[357295824,1743993044263,-151.132,0.00018859,2]
[357295825,1743993044273,-1075.45,0.00018864,2]
[357295826,1743993044283,-1075.45,0.00018869,2]
[357295827,1743993044292,-1075.45,0.00018874,2]
[357295828,1743993044302,-1075.45,0.00018879,2]
[357295829,1743993044312,-1254.37,0.00018881,2]
[357295830,1743993044322,-1075.45,0.00018884,2]
[357295831,1743993044332,-1075.45,0.00018889,2]
[357295832,1743993044342,-1075.45,0.00018894,2]
[357295833,1743993044351,-156.05154087,0.000189,2]
[357295834,1743993044361,-151.98101554,0.000189,2]
[357295835,1743993044371,-23900.0,0.0001897,2]
[357295836,1743993044381,-250.0,0.00019,2]
[357295837,1743993044392,-250.0,0.00019021,2]
[357295838,1743993044402,-1000.0,0.00019085,2]
[357295839,1743993044413,-2400.0,0.000193,7]
[357295840,1743993044423,-250.37,0.00019301,2]
[357295841,1743993044433,-4900.0,0.000194,7]
[357295842,1743993044443,-7300.0,0.000195,7]
[357295843,1743993044453,-2659.0,0.00019569,2]
[357295844,1743993044463,-9800.0,0.000196,7]
[357295845,1743993044473,-1580.4624,0.00019686,2]
[357295846,1743993044483,-858.2661,0.00019686,2]
[357295847,1743993044493,-1095.78736806,0.000197,2]
[357295848,1743993044503,-12200.0,0.000197,7]
[357295849,1743993044512,-1095.78736806,0.00019732,2]
[357295850,1743993044522,-1095.78736806,0.00019764,2]
[357295851,1743993044532,-663.79,0.00019785,2]
[357295852,1743993044541,-36055.9761,0.00019786,2]
[357295853,1743993044550,-540.4169,0.00019786,2]
[357295854,1743993044560,-34935.8062,0.00019786,2]
[357295855,1743993044570,-667.2644,0.00019786,2]
[357295856,1743993044580,-1817.2181,0.00019786,2]
[357295857,1743993044590,-1095.78736806,0.00019796,2]
[357295858,1743993044600,-2839.91,0.00019799,2]
[357295859,1743993044610,-500.0,0.000198,2]
[357295860,1743993044621,-1696.1562,0.000198,2]
[357295861,1743993044631,-2073.7311,0.000198,2]
[357295862,1743993044641,-3059.7875,0.000198,2]
[357295863,1743993044651,-1000.0,0.000198,2]
[357295864,1743993044662,-672.75137276,0.000198,2]
[357295865,1743993044673,-2400.0,0.000198,7]
[357295866,1743993044683,-661.2846,0.000198,2]
[357295867,1743993044694,-1095.78736806,0.00019828,2]
[357295868,1743993044704,-1095.78736806,0.00019861,2]
[357295869,1743993044715,-502.50911584,0.00019873,2]
[357295870,1743993044725,-504.89101316,0.00019873,2]
[357295871,1743993044735,-291.90403061,0.00019886,2]
[357295872,1743993044745,-1095.78736806,0.00019893,2]
[357295873,1743993044756,-66331.0355,0.000199,2]
[357295874,1743993044766,-5597.2848,0.000199,2]
[357295875,1743993044775,-158.76687369,0.000199,2]
[357295876,1743993044785,-162.19913713,0.000199,2]
[357295877,1743993044795,-5074.555948,0.000199,2]
[357295878,1743993044804,-2400.0,0.000199,7]
[357295879,1743993044814,-192.22080008,0.000199,3]
[357295880,1743993044823,-188.11341176,0.000199,2]
[357295881,1743993044833,-4548.45202814,0.000199,2]
[357295882,1743993044842,-672.75137275,0.000199,2]
[357295883,1743993044852,-1095.78736806,0.00019925,2]
[357295884,1743993044861,-1095.78736806,0.00019957,2]
[357295885,1743993044871,-243.0,0.00019973,2]
[357295886,1743993044880,-42532.0,0.00019973,2]
[357295887,1743993044890,-213.85670206,0.00019973,2]
[357295888,1743993044900,-500.0,0.00019973,2]
[357295889,1743993044910,-504.40411083,0.00019973,2]
[357295890,1743993044927,-209.0,0.00019973,2]
[357295891,1743993044936,-181.48271303,0.00019973,2]
[357295892,1743993044946,-153.06111677,0.00019973,2]
[357295893,1743993044956,-276.82849714,0.00019973,2]
[357295894,1743993044965,-182.20004979,0.00019973,2]
[357295895,1743993044975,-1095.78736806,0.00019989,2]
[357295896,1743993044985,-536568.24148059,0.0002,2]
[357295897,1743993045017,-322.84770358,0.0002,2]
[357295898,1743993045046,-28230.23400974,0.0002,2]
[357295900,1743993046364,-840430.50591246,0.0002,2]
[357295901,1743993046687,-7861.0,0.0002,2]
[357295902,1743993046747,-2797.40499834,0.0002,2]
[357295903,1743993046759,-338.92434312,0.0002,2]
[357295913,1743993541136,2000.0,0.0003963,60]
[357295914,1743993603194,228.28,0.00032932,120]
[357295918,1743993774056,200.0,0.00032,120]
[357295919,1743993878722,500.0,0.00032,120]
[357295951,1743994231355,-317.54,0.00017001,2]
[357295952,1743994231377,-276.54,0.00017001,2]
[357295953,1743994231387,-250.0,0.0001798,2]
[357295954,1743994231397,-250.0,0.00018655,2]
[357295955,1743994231406,-41.83668896,0.00018701,2]
[357295956,1743994231513,-208.16331104,0.00018701,2]
[357295957,1743994231525,-214.61,0.00018833,2]
[357295958,1743994231534,-150.0,0.00018959,2]
[357295959,1743994231544,-250.0,0.00019,2]
[357295960,1743994231554,-200.0,0.00019049,2]
[357295961,1743994231564,-30.27166137,0.00019265,2]
[357296106,1743994237400,-563.80833863,0.00019265,2]
[357296107,1743994237410,-300.0,0.000194,7]
[357296108,1743994237420,-435.66990837,0.00019403,2]
[357296109,1743994237429,-749.79,0.00019478,2]
[357296110,1743994237439,-435.66990837,0.00019489,2]
[357296111,1743994237448,-700.0,0.000195,7]
[357296112,1743994237458,-1100.0,0.000196,7]
[357296113,1743994237467,-614.2828,0.000196,2]
[357296114,1743994237478,-178.18,0.00019633,2]
[357296115,1743994237490,-1500.0,0.000197,7]
[357296116,1743994237509,-5246.3503,0.000198,2]
[357296117,1743994237519,-253.198,0.000198,2]
[357296118,1743994237530,-268.6891,0.000198,2]
[357296119,1743994237540,-2945.5368,0.000198,2]
[357296120,1743994237549,-1900.0,0.000198,7]
[357296121,1743994237560,-435.66990837,0.00019834,2]
[357296122,1743994237570,-503.34390554,0.00019873,2]
[357296123,1743994237580,-500.0,0.00019873,2]
[357296124,1743994237590,-153.0,0.00019894,2]
[357296125,1743994237600,-23900.0,0.00019895,2]
[357296126,1743994237611,-500.0,0.000199,2]
[357296127,1743994237620,-5796.26933243,0.000199,2]
[357296128,1743994237633,-1655.02,0.000199,2]
[357296129,1743994237673,-317.16062539,0.000199,2]
[357296130,1743994237685,-1242.475,0.000199,2]
[357296338,1743994239555,-667.54514218,0.000199,2]
[357296340,1743994239567,-594.16501127,0.000199,2]
[357296349,1743994239604,-3002.95848873,0.000199,2]
[357296352,1743994239613,-1723.20151127,0.000199,2]
[357296371,1743994239710,-9502.67247795,0.000199,2]
[357296438,1743994240026,-2607.46701524,0.000199,2]
[357296795,1743994242423,-679.01140783,0.000199,2]
[357296797,1743994242435,-329.081216,0.000199,2]
[357296831,1743994242447,-486.64650687,0.000199,2]
[357296834,1743994242767,-537.59340256,0.000199,2]
[357296873,1743994243198,-1213.13591452,0.000199,2]
[357296876,1743994243221,-1126.62613014,0.000199,2]
[357297052,1743994245575,-314.93112717,0.000199,2]
[357297054,1743994245587,-293.64772003,0.000199,2]
[357297072,1743994245764,-268.987887,0.000199,2]
[357297074,1743994245776,-318.8803487,0.000199,2]
[357297080,1743994245819,-2242.65750382,0.000199,2]
[357297082,1743994245830,-4081.2399953,0.000199,2]
[357297084,1743994245841,-1985.64820892,0.000199,2]
[357297132,1743994281791,386.0,0.0003963,30]
[357297133,1743994393831,300.0,0.00032,120]
[357297134,1743994414528,300.0,0.00033,120]
[357297135,1743994554232,2947.24,0.0003963,120]
[357297136,1743994574111,200.0,0.00033,120]
[357297137,1743994604739,516.0,0.00033,120]
[357297138,1743994628965,209.25,0.00032932,120]
[357297141,1743994936373,200.0,0.0003963,30]
[357297142,1743994937026,207.4,0.0003963,30]
[357297143,1743994938280,215.0738,0.0003963,30]
[357297144,1743994938915,223.0315306,0.0003963,30]
[357297145,1743994939553,231.28369723,0.0003963,30]
[357297146,1743994940199,239.84119403,0.0003963,30]
[357297147,1743994940881,248.71531821,0.0003963,30]
[357297148,1743994941534,257.91778498,0.0003963,30]
[357297149,1743994942154,267.46074303,0.0003963,30]
[357297150,1743994942868,277.35679052,0.0003963,30]
[357297151,1743994943769,287.61899177,0.0003963,30]
[357297152,1743994944524,298.26089446,0.0003963,30]
[357297153,1743994945066,309.29654756,0.0003963,30]
[357297154,1743994945708,320.74051982,0.0003963,30]
[357297155,1743994946350,332.60791905,0.0003963,30]
[357297156,1743994947030,344.91441206,0.0003963,30]
[357297157,1743994947708,357.6762453,0.0003963,30]
[357297158,1743994948387,370.91026638,0.0003963,30]
[357297159,1743994949033,384.63394623,0.0003963,30]
[357297160,1743994949675,384.63394623,0.0003963,30]
[357297161,1743994960744,2500.0,0.0003963,120]
[357297162,1743995236609,200.0,0.0003963,30]
[357297163,1743995237358,207.4,0.0003963,30]
[357297164,1743995238046,215.0738,0.0003963,30]
[357297165,1743995238647,223.0315306,0.0003963,30]
[357297166,1743995239270,231.28369723,0.0003963,30]
[357297167,1743995239927,239.84119403,0.0003963,30]
[357297168,1743995240563,248.71531821,0.0003963,30]
[357297169,1743995241236,257.91778498,0.0003963,30]
[357297170,1743995241849,267.46074303,0.0003963,30]
[357297171,1743995243161,277.35679052,0.0003963,30]
[357297172,1743995243848,287.61899177,0.0003963,30]
[357297173,1743995244516,298.26089446,0.0003963,30]
[357297174,1743995245145,309.29654756,0.0003963,30]
[357297175,1743995246456,320.74051982,0.0003963,30]
[357297180,1743995247224,332.60791905,0.0003963,30]
[357297187,1743995247904,344.91441206,0.0003963,30]
[357297188,1743995248531,357.6762453,0.0003963,30]
[357297189,1743995249208,370.91026638,0.0003963,30]
[357297190,1743995249896,384.63394623,0.0003963,30]
[357297191,1743995250991,384.63394623,0.0003963,30]
[357297198,1743995431681,-150.6,0.00019833,2]
[357297199,1743995431691,-5275.653,0.000199,2]
[357297200,1743995431702,-223.0,0.000199,2]
[357297201,1743995431711,-158.9648,0.000199,2]
[357297202,1743995431721,-158.76687369,0.000199,2]
[357297203,1743995431730,-292.6551,0.000199,2]
[357297204,1743995431740,-161.3458567,0.000199,2]
[357297205,1743995431749,-966.8065815,0.000199,2]
[357297206,1743995431759,-642.5479,0.000199,2]
[357297207,1743995431768,-185.41872734,0.000199,2]
[357297208,1743995431778,-17.46616143,0.000199,2]
[357297209,1743995431892,-170.64725033,0.000199,2]
[357297210,1743995431906,-526.36266962,0.000199,2]
[357297211,1743995431999,-2505.93868248,0.000199,2]
[357297212,1743995432010,-589.12313122,0.00019903,2]
[357297213,1743995432021,-692.5527292,0.00019903,2]
[357297214,1743995432033,-2314.20894858,0.00019903,2]
[357297215,1743995432043,-12635.82500813,0.00019903,2]
[357297216,1743995432059,-1000.09,0.00019903,2]
[357297217,1743995432109,-15695.99999999,0.00019903,2]
[357297225,1743995437498,-740.75,0.00019903,2]
[357297226,1743995437657,-759.83348932,0.00019903,2]
[357297227,1743995437781,-916.26098425,0.00019903,2]
[357297228,1743995437792,-458.84855654,0.00019903,2]
[357297229,1743995437805,-663.85289851,0.00019903,2]
[357297231,1743995437821,-150.62583186,0.00019903,2]
[357297232,1743995437830,-150.0,0.0001997,2]
[357297234,1743995437840,-490.66466813,0.00019972,2]
[357297249,1743995439970,-223.0,0.000199,2]
[357297250,1743995439982,-70.22318818,0.00019972,2]
[357297251,1743995439993,-3330.14103743,0.00019972,2]
[357297273,1743995445816,-299.1995,0.000199,2]
[357297274,1743995445826,-20008.97110626,0.00019972,2]
[357297275,1743995445835,-200.0,0.00019972,2]
[357297276,1743995445844,-157.04,0.00019976,2]
[357297277,1743995445855,-1000.0,0.00019982,2]
[357297278,1743995445864,-69.47898077,0.00019986,2]
[357297279,1743995445977,-2600.14735946,0.00019986,2]
[357297280,1743995445989,-313.88765628,0.00019986,2]
[357297296,1743995537955,200.0,0.0003963,30]
[357297297,1743995538621,207.4,0.0003963,30]
[357297298,1743995539875,215.0738,0.0003963,30]
[357297299,1743995540570,223.0315306,0.0003963,30]
[357297300,1743995541288,231.28369723,0.0003963,30]
[357297301,1743995542448,239.84119403,0.0003963,30]
[357297302,1743995542741,248.71531821,0.0003963,30]
[357297303,1743995543418,257.91778498,0.0003963,30]
[357297304,1743995544067,267.46074303,0.0003963,30]
[357297305,1743995544721,277.35679052,0.0003963,30]
[357297306,1743995545382,287.61899177,0.0003963,30]
[357297307,1743995546013,298.26089446,0.0003963,30]
[357297308,1743995546646,309.29654756,0.0003963,30]
[357297309,1743995547355,320.74051982,0.0003963,30]
[357297310,1743995547993,332.60791905,0.0003963,30]
[357297311,1743995548665,344.91441206,0.0003963,30]
[357297312,1743995549316,357.6762453,0.0003963,30]
[357297313,1743995549962,370.91026638,0.0003963,30]
[357297314,1743995550618,384.63394623,0.0003963,30]
[357297315,1743995551248,384.63394623,0.0003963,30]
[357297316,1743995588679,271.49975,0.00019986,23]
[357297343,1743995794437,191.81,0.00032932,120]
[357297344,1743995835737,200.0,0.0003963,30]
[357297345,1743995836482,207.4,0.0003963,30]
[357297346,1743995837177,215.0738,0.0003963,30]
[357297347,1743995838028,223.0315306,0.0003963,30]
[357297348,1743995838735,231.28369723,0.0003963,30]
[357297349,1743995839322,239.84119403,0.0003963,30]
[357297350,1743995839961,248.71531821,0.0003963,30]
[357297351,1743995840577,257.91778498,0.0003963,30]
[357297352,1743995841223,267.46074303,0.0003963,30]
[357297353,1743995841911,277.35679052,0.0003963,30]
[357297354,1743995842644,287.61899177,0.0003963,30]
[357297355,1743995843328,298.26089446,0.0003963,30]
[357297356,1743995843925,309.29654756,0.0003963,30]
[357297357,1743995844559,320.74051982,0.0003963,30]
[357297358,1743995845216,332.60791905,0.0003963,30]
[357297359,1743995845848,344.91441206,0.0003963,30]
[357297360,1743995846514,357.6762453,0.0003963,30]
[357297361,1743995847159,370.91026638,0.0003963,30]
[357297362,1743995848349,384.63394623,0.0003963,30]
[357297363,1743995849449,384.63394623,0.0003963,30]
[357297364,1743996136600,200.0,0.00039631,30]
[357297365,1743996137254,207.4,0.00039631,30]
[357297366,1743996137923,215.0738,0.00039631,30]
[357297367,1743996138595,223.0315306,0.00039631,30]
[357297368,1743996139242,231.28369723,0.00039631,30]
[357297369,1743996140245,239.84119403,0.00039631,30]
[357297370,1743996140544,248.71531821,0.00039631,30]
[357297371,1743996141217,257.91778498,0.00039631,30]
[357297372,1743996141865,267.46074303,0.00039631,30]
[357297373,1743996142549,277.35679052,0.00039631,30]
[357297374,1743996143184,287.61899177,0.00039631,30]
[357297375,1743996143885,298.26089446,0.00039631,30]
[357297376,1743996144567,309.29654756,0.00039631,30]
[357297377,1743996145824,320.74051982,0.00039631,30]
[357297378,1743996146652,332.60791905,0.00039631,30]
[357297379,1743996147289,344.91441206,0.00039631,30]
[357297380,1743996147958,357.6762453,0.00039631,30]
[357297381,1743996149228,370.91026638,0.00039631,30]
[357297382,1743996149881,384.63394623,0.00039631,30]
[357297383,1743996150561,384.63394623,0.00039631,30]
[357297384,1743996320473,2000.0,9e-05,2]
[357297385,1743996320495,2000.0,9e-05,2]
[357297386,1743996320517,770.36363925,9e-05,2]
[357297387,1743996337817,1229.63636075,8e-05,2]
[357297388,1743996337838,2000.0,8e-05,2]
[357297389,1743996337859,2000.0,8e-05,2]
[357297390,1743996337888,4345.40963925,8e-05,2]
[357297391,1743996438474,200.0,0.00039631,30]
[357297392,1743996439179,207.4,0.00039631,30]
[357297393,1743996439983,215.0738,0.00039631,30]
[357297394,1743996440737,223.0315306,0.00039631,30]
[357297395,1743996441413,231.28369723,0.00039631,30]
[357297396,1743996442041,239.84119403,0.00039631,30]
[357297397,1743996442666,248.71531821,0.00039631,30]
[357297398,1743996443341,257.91778498,0.00039631,30]
[357297399,1743996444019,267.46074303,0.00039631,30]
[357297400,1743996444637,277.35679052,0.00039631,30]
[357297401,1743996445304,287.61899177,0.00039631,30]
[357297402,1743996445937,298.26089446,0.00039631,30]
[357297403,1743996446599,309.29654756,0.00039631,30]
[357297404,1743996447471,320.74051982,0.00039631,30]
[357297405,1743996448336,332.60791905,0.00039631,30]
[357297406,1743996448773,344.91441206,0.00039631,30]
[357297407,1743996449439,357.6762453,0.00039631,30]
[357297408,1743996450090,370.91026638,0.00039631,30]
[357297409,1743996450725,384.63394623,0.00039631,30]
[357297410,1743996451361,384.63394623,0.00039631,30]
[357297415,1743996513234,-315.14881894,0.00014925,2]
[357297416,1743996514979,81892.35404526,0.00039631,60]
[357297420,1743996570167,-1501.9092,0.00014925,2]
[357297427,1743996583370,-167.51768369,0.000149,2]
[357297428,1743996587290,-1151.16745691,0.000149,2]
[357297430,1743996587322,-8916.19418879,0.0001499,2]
[357297432,1743996587359,-10067.3616457,0.0001499,2]
[357297435,1743996587413,-4188.12002241,0.0001499,2]
[357297437,1743996588407,-241.59981435,0.0001499,2]
[357297438,1743996603001,-250.0,0.0001499,2]
[357297439,1743996604717,-4120.98653335,0.0001499,2]
[357297440,1743996604769,75152.12949444,0.00039631,120]
[357297450,1743996631814,-250.0,0.00014995,2]
[357297451,1743996631823,-150.0,0.00014999,2]
[357297452,1743996631832,-1316.35675238,0.00015,2]
[357297453,1743996631843,-15239.07499934,0.00015,2]
[357297454,1743996631869,-828.99460825,0.00015,2]
[357297455,1743996631924,-4565.18765794,0.00015,2]
[357297456,1743996631979,-308.79,0.00015,2]
[357297457,1743996632087,-17295.4200012,0.00015,2]
[357297458,1743996632143,-15620.0,0.00015,2]
[357297504,1743996637821,-3774.53643325,0.00015,2]
[357297505,1743996637834,-963.26438089,0.00015,2]
[357297506,1743996637880,-12223.28385177,0.00015,2]
[357297507,1743996637892,-282.28200208,0.00015,2]
[357297508,1743996637940,-472.560984,0.00015,2]
[357297509,1743996637951,-265.71883021,0.00015,2]
[357297516,1743996640353,-1406.24349477,0.00015,2]
[357297517,1743996640376,-1583.37340851,0.00015,2]
[357297518,1743996640395,-2651.94090598,0.00015,2]
[357297519,1743996640415,-727.40483639,0.00015,2]
[357297520,1743996640427,-17004.07780853,0.00015,2]
[357297521,1743996640438,-1607.21776514,0.00015,2]
[357297522,1743996640462,-4293.65756669,0.00015,2]
[357297523,1743996640472,-255.0,0.00016124,2]
[357297524,1743996640483,-250.0,0.00016489,2]
[357297525,1743996640493,-200.0,0.00018803,7]
[357297526,1743996640503,-250.0,0.00018847,2]
[357297527,1743996640513,-164.87,0.0001889,2]
[357297528,1743996640522,-250.0,0.00019,2]
[357297529,1743996640532,-172.70620128,0.00019,2]
[357297530,1743996640541,-12445.39,0.00019022,2]
[357297531,1743996640551,-2077.99,0.00019137,2]
[357297532,1743996640560,-877.83,0.00019192,2]
[357297533,1743996640570,-200.0,0.00019192,2]
[357297534,1743996640579,-170.67,0.00019384,2]
[357297535,1743996640588,-150.5,0.00019385,2]
[357297537,1743996640597,-2691.8596552,0.00019399,2]
[357297539,1743996640608,-650.77,0.00019416,2]
[357297541,1743996640618,-300.0,0.00019472,2]
[357297542,1743996640628,-3310.34091259,0.00019528,2]
[357297543,1743996640638,-1000.0,0.000197,2]
[357297544,1743996640648,-1012.0,0.000197,2]
[357297545,1743996640658,-504.0,0.00019808,2]
[357297546,1743996640667,-694.767,0.00019879,2]
[357297547,1743996640678,-1000.0,0.00019879,2]
[357297548,1743996640688,-623.45267857,0.00019886,2]
[357297549,1743996640697,-623.45267848,0.00019888,2]
[357297550,1743996640706,-623.45267848,0.00019889,2]
[357297551,1743996640715,-447.96,0.0001989,2]
[357297552,1743996640725,-447.96,0.0001989,2]
[357297553,1743996640735,-623.45267848,0.00019891,2]
[357297554,1743996640744,-623.45267848,0.00019892,2]
[357297555,1743996640754,-623.45267848,0.00019894,2]
[357297556,1743996640763,-623.45267848,0.00019895,2]
[357297557,1743996640773,-623.45267848,0.00019897,2]
[357297559,1743996640782,-623.45267848,0.00019898,2]
[357297561,1743996640792,-8344.5478,0.000199,2]
[357297563,1743996640801,-6017.17675783,0.000199,2]
[357297565,1743996640813,-10720.17676449,0.000199,2]
[357297567,1743996640824,-2612.30408965,0.000199,2]
[357297570,1743996640839,-51158.25828803,0.000199,2]
[357297571,1743996640849,-158.76687369,0.000199,2]
[357297572,1743996640858,-623.45267848,0.000199,2]
[357297573,1743996640867,-161.34585669,0.000199,2]
[357297574,1743996640877,-1177.67333469,0.000199,2]
[357297575,1743996640886,-188.11341176,0.000199,2]
[357297576,1743996640895,-4522.0696802,0.000199,2]
[357297577,1743996640905,-2021.53423472,0.000199,2]
[357297578,1743996640914,-200.0,0.00019911,2]
[357297579,1743996640924,-500.0,0.00019973,2]
[357297580,1743996640934,-500.0,0.00019973,2]
[357297581,1743996640943,-447.96,0.00019976,2]
[357297582,1743996640952,-23328.6599359,0.00019986,2]
[357297583,1743996640962,-9299.4292206,0.00019986,2]
[357297584,1743996640971,-447.96,0.0001999,2]
[357297585,1743996640982,-447.96,0.0001999,2]
[357297586,1743996640989,-447.96,0.0001999,2]
[357297587,1743996640999,-447.96,0.0001999,2]
[357297588,1743996641008,-447.96,0.0001999,2]
[357297589,1743996641018,-447.96,0.0001999,2]
[357297590,1743996641027,-447.96,0.0001999,2]
[357297591,1743996641036,-1802.0,0.0002,2]
[357297592,1743996641046,-1419434.16411642,0.0002,2]
[357297593,1743996641056,-10343.56216848,0.0002,2]
[357297594,1743996641066,-85453.45912904,0.0002,4]
[357297595,1743996641075,-1502.43259645,0.0002,4]
[357297596,1743996641087,-209.51,0.0002,2]
[357297597,1743996641097,-3044496.27703733,0.0002,2]
[357297598,1743996641110,-1840.0,0.0002,2]
[357297599,1743996641136,-535.85788251,0.0002,2]
[357297625,1743996643590,-1084.18912443,0.0002,2]
[357297626,1743996643602,-453.0,0.0002,2]
[357297627,1743996643612,-500.0,0.0002,2]
[357297628,1743996643638,-392.19791196,0.0002,2]
[357297629,1743996643649,-869.30755836,0.0002,2]
[357297630,1743996643660,-1759.35999998,0.0002,2]
[357297633,1743996645816,-326.88027612,0.0002,2]
[357297634,1743996645889,-52537.0,0.0002,2]
[357297635,1743996645899,-532.03038601,0.0002,2]
[357297636,1743996645911,-3092.969476,0.0002,2]
[357297637,1743996645929,-459.19667862,0.0002,2]
[357297638,1743996646040,-537.85659369,0.0002,2]
[357297639,1743996646052,-1436.74816541,0.0002,2]
[357297641,1743996737909,200.0,0.00039631,30]
[357297642,1743996738608,207.4,0.00039631,30]
[357297643,1743996739254,215.0738,0.00039631,30]
[357297644,1743996739940,223.0315306,0.00039631,30]
[357297645,1743996740620,231.28369723,0.00039631,30]
[357297646,1743996741221,239.84119403,0.00039631,30]
[357297647,1743996741867,248.71531821,0.00039631,30]
[357297648,1743996742685,257.91778498,0.00039631,30]
[357297649,1743996743562,267.46074303,0.00039631,30]
[357297650,1743996744170,277.35679052,0.00039631,30]
[357297651,1743996745028,287.61899177,0.00039631,30]
[357297652,1743996745576,298.26089446,0.00039631,30]
[357297653,1743996746244,309.29654756,0.00039631,30]
[357297654,1743996746960,320.74051982,0.00039631,30]
[357297655,1743996747649,332.60791905,0.00039631,30]
[357297656,1743996748309,344.91441206,0.00039631,30]
[357297657,1743996749090,357.6762453,0.00039631,30]
[357297658,1743996749760,370.91026638,0.00039631,30]
[357297659,1743996750414,384.63394623,0.00039631,30]
[357297660,1743996751109,384.63394623,0.00039631,30]
[357297661,1743996945897,631.0,0.0003963,120]
[357297662,1743996964017,175.82,0.00032932,120]
[357297663,1743996977064,185.77,0.00013699,2]
[357297664,1743997036575,200.0,0.0003963,30]
[357297665,1743997037201,207.4,0.0003963,30]
[357297666,1743997037955,215.0738,0.0003963,30]
[357297667,1743997038605,223.0315306,0.0003963,30]
[357297668,1743997039326,231.28369723,0.0003963,30]
[357297669,1743997039953,239.84119403,0.0003963,30]
[357297670,1743997040602,248.71531821,0.0003963,30]
[357297671,1743997041286,257.91778498,0.0003963,30]
[357297672,1743997041982,267.46074303,0.0003963,30]
[357297673,1743997042677,277.35679052,0.0003963,30]
[357297674,1743997043343,287.61899177,0.0003963,30]
[357297675,1743997043981,298.26089446,0.0003963,30]
[357297676,1743997044629,309.29654756,0.0003963,30]
[357297677,1743997045299,320.74051982,0.0003963,30]
[357297678,1743997046152,332.60791905,0.0003963,30]